bitfinex-derivatives/quotes_SOLF0:USTF0_20260203
["timestamp","ask_amount","ask_price","bid_price","bid_amount"]
[1770153060192,0.06227831,101.63,101.58,74.55589678]
[1770153060395,72.99480991,101.63,101.56,72.87142655]
[1770153060890,72.9325316,101.63,101.56,72.87142655]
[1770153061390,0.06235344,101.61,101.56,81.74412655]
[1770153061584,0.06235344,101.61,101.56,72.87142655]
[1770153062890,0.06235344,101.61,101.57,72.87142655]
[1770153063084,72.9325316,101.65,101.58,81.74162655]
[1770153063289,72.9325316,101.65,101.58,72.87142655]
[1770153064693,72.9325316,101.65,101.59,8.8694]
[1770153065889,72.9325316,101.65,101.59,81.74082655]
[1770153066090,72.9325316,101.65,101.59,72.87142655]
[1770153066589,79.37152693,101.64,101.57,72.87142655]
[1770153066789,6.43899533,101.62,101.55,72.87142655]
[1770153067183,15.30659533,101.62,101.55,81.74502655]
[1770153067392,6.43899533,101.62,101.55,72.87142655]
[1770153067789,79.37152693,101.62,101.55,72.87142655]
[1770153067989,6.43899533,101.6,101.53,72.87142655]
[1770153068897,6.43899533,101.6,101.54,8.8738]
[1770153069090,79.37152693,101.62,101.54,72.87142655]
[1770153069594,79.37152693,101.62,101.52,138.0644]
[1770153069595,6.43899533,101.58,101.52,72.87142655]
[1770153069997,6.43899533,101.58,101.52,81.74752655]
[1770153070190,6.43899533,101.58,101.52,72.87142655]
[1770153070594,79.37152693,101.58,101.52,72.87142655]
[1770153071395,79.37152693,101.58,101.49,72.87142655]
[1770153071599,79.37152693,101.58,101.47,138.1318]
[1770153071600,72.9325316,101.56,101.47,211.00322655]
[1770153071895,72.9325316,101.56,101.47,72.87142655]
[1770153071896,79.37152693,101.54,101.47,72.87142655]
[1770153072100,6.43899533,101.52,101.45,81.75312655]
[1770153072998,211.0510316,101.49,101.38,102.53142655]
[1770153073294,138.1129,101.5,101.39,72.87142655]
[1770153073295,6.43899533,101.48,101.39,72.87142655]
[1770153073500,6.43899533,101.49,101.39,72.87142655]
[1770153073691,6.43899533,101.51,101.41,72.87142655]
[1770153073892,79.37152693,101.53,101.43,72.87142655]
[1770153074200,72.9325316,101.54,101.45,72.87142655]
[1770153074503,72.9325316,101.54,101.45,72.93387739]
[1770153074800,72.9325316,101.54,101.45,72.87142655]
[1770153075099,217.39152693,101.57,101.45,72.87142655]
[1770153075300,79.37152693,101.57,101.46,72.87142655]
[1770153075494,72.9325316,101.57,101.47,72.87142655]
[1770153075697,318.08959533,101.59,101.47,72.87142655]
[1770153075698,72.9325316,101.6,101.51,72.87142655]
[1770153075901,72.9325316,101.6,101.52,72.87142655]
[1770153076602,72.9325316,101.63,101.53,79.31042188]
[1770153076998,81.7969316,101.66,101.54,72.87142655]
[1770153077203,81.7969316,101.66,101.56,72.87142655]
[1770153077402,72.9325316,101.64,101.56,72.87142655]
[1770153077598,79.37152693,101.63,101.56,72.87142655]
[1770153077908,72.9325316,101.62,101.53,72.87142655]
[1770153079304,79.37152693,101.65,101.55,72.87142655]
[1770153079507,72.9325316,101.65,101.55,79.31042188]
[1770153080009,79.37152693,101.65,101.55,67.07142655]
[1770153082206,69.2181823,101.63,101.55,67.07142655]
[1770153083716,84.52177763,101.66,101.55,67.07142655]
[1770153084813,84.52177763,101.66,101.55,75.94492655]
[1770153085614,75.65717763,101.64,101.55,67.07142655]
[1770153085807,75.65717763,101.62,101.55,67.07142655]
[1770153086202,84.52497763,101.62,101.55,67.07142655]
[1770153086408,84.52497763,101.62,101.52,69.07018504]
[1770153087113,84.52497763,101.62,101.52,77.94578504]
[1770153088617,75.6714936,101.61,101.52,77.94578504]
[1770153089421,137.9014,101.65,101.52,77.94578504]
[1770153089422,69.2181823,101.66,101.52,69.07018504]
[1770153089625,69.2181823,101.66,101.58,77.94058504]
[1770153090120,69.2181823,101.66,101.55,144.4824113]
[1770153090121,75.6714936,101.63,101.55,69.07018504]
[1770153091513,84.5384936,101.63,101.55,77.94378504]
[1770153094317,6.4533113,101.61,101.55,77.94378504]
[1770153094724,69.2181823,101.62,101.56,8.8728]
[1770153096016,6.4533113,101.61,101.55,77.94378504]
[1770153096323,6.4533113,101.61,101.55,69.07018504]
[1770153096524,75.6714936,101.61,101.53,69.07018504]
[1770153096715,137.9323,101.63,101.52,392.98]
[1770153096716,75.6714936,101.59,101.52,392.98]
[1770153096919,75.6714936,101.59,101.5,207.17228504]
[1770153097120,75.6714936,101.59,101.51,69.07018504]
[1770153097520,75.6714936,101.59,101.51,207.15978504]
[1770153098330,75.6714936,101.59,101.51,69.07018504]
[1770153098821,8.8693,101.6,101.49,392.98]
[1770153098822,75.6714936,101.57,101.49,392.98]
[1770153099026,6.4533113,101.55,101.48,69.07018504]
[1770153099416,75.6714936,101.55,101.48,69.07018504]
[1770153100025,6.4533113,101.53,101.46,392.98]
[1770153100327,6.4533113,101.53,101.46,69.07018504]
[1770153100328,75.6714936,101.53,101.46,69.07018504]
[1770153100721,75.6714936,101.53,101.43,323.07018504]
[1770153100722,75.6714936,101.51,101.43,323.07018504]
[1770153101121,84.5488936,101.51,101.43,69.07018504]
[1770153101428,75.6714936,101.52,101.43,69.07018504]
[1770153101629,75.6714936,101.52,101.43,77.95398504]
[1770153101927,6.4533113,101.54,101.44,69.07018504]
[1770153102124,6.4533113,101.54,101.45,69.07018504]
[1770153102427,69.2181823,101.55,101.47,69.07018504]
[1770153102821,69.2181823,101.55,101.47,77.95068504]
[1770153105230,15.3261113,101.56,101.47,77.95068504]
[1770153105431,78.0900823,101.58,101.49,69.07018504]
[1770153105823,69.2181823,101.58,101.49,69.07018504]
[1770153106930,8.8719,101.57,101.49,69.07018504]
[1770153107133,69.2181823,101.58,101.49,69.07018504]
[1770153107929,6.4533113,101.57,101.49,69.07018504]
[1770153108927,75.6714936,101.57,101.49,69.07018504]
[1770153109928,84.5436936,101.57,101.49,69.07018504]
[1770153110132,75.6714936,101.55,101.49,69.07018504]
[1770153110325,75.6714936,101.55,101.46,77.95088504]
[1770153110526,84.5451936,101.55,101.46,69.07018504]
[1770153110728,6.4533113,101.53,101.46,69.07018504]
[1770153110935,84.5451936,101.55,101.46,69.07018504]
[1770153111732,75.6714936,101.55,101.47,83.74026193]
[1770153115328,75.6714936,101.55,101.47,74.85986193]
[1770153115727,8.8746,101.54,101.47,74.85986193]
[1770153115929,75.6714936,101.55,101.47,74.85986193]
[1770153116828,75.6714936,101.55,101.48,77.17389331]
[1770153117539,75.6714936,101.55,101.49,8.8787]
[1770153117931,69.2181823,101.55,101.49,8.8787]
[1770153118539,84.5451936,101.55,101.49,8.8787]
[1770153118838,75.6714936,101.55,101.49,8.8787]
[1770153120136,0.06247052,101.53,101.49,8.8787]
[1770153120337,0.06247052,101.53,101.48,77.17339331]
[1770153120939,0.06247052,101.53,101.49,8.8789]
[1770153125832,0.00046139,101.53,101.49,68.29439331]
[1770153126032,0.00046139,101.53,101.47,68.29439331]
[1770153126636,77.27738108,101.53,101.47,68.29439331]
[1770153127241,77.27738108,101.53,101.47,77.17439331]
[1770153128241,77.27738108,101.53,101.47,68.29439331]
[1770153128639,86.15288108,101.53,101.45,68.29439331]
[1770153128847,70.82406978,101.53,101.45,68.29439331]
[1770153129049,70.82360839,101.53,101.45,68.29439331]
[1770153129537,70.82360839,101.53,101.46,8.8814]
[1770153129935,70.82360839,101.53,101.46,77.17579331]
[1770153130542,79.69910839,101.53,101.46,77.17579331]
[1770153130942,70.82360839,101.53,101.47,77.17489331]
[1770153133749,70.82360839,101.53,101.48,8.8797]
[1770153134141,6.4533113,101.54,101.48,68.29439331]
[1770153134450,70.82360839,101.55,101.5,8.8779]
[1770153134846,70.82360839,101.55,101.49,8.8788]
[1770153135244,70.82360839,101.53,101.47,393.28]
[1770153135542,70.82360839,101.53,101.48,8.8797]
[1770153135849,70.82360839,101.53,101.46,68.29439331]
[1770153136853,70.82360839,101.53,101.47,8.8806]
[1770153137048,79.69920839,101.53,101.47,8.8806]
[1770153137350,77.27691969,101.52,101.46,68.29439331]
[1770153137846,86.15331969,101.52,101.46,68.29439331]
[1770153139045,86.15331969,101.52,101.48,0.06229674]
[1770153139348,86.15331969,101.52,101.46,68.29439331]
[1770153140144,8.8772,101.51,101.44,461.57439331]
[1770153140344,77.27691969,101.52,101.44,461.57439331]
[1770153140744,76.16326248,101.48,101.42,69.38648986]
[1770153140949,76.16326248,101.48,101.4,69.38648986]
[1770153141347,76.16326248,101.5,101.4,78.21364992]
[1770153141549,76.16326248,101.5,101.42,69.38648986]
[1770153141857,76.16326248,101.52,101.43,78.21364992]
[1770153142347,85.03976248,101.52,101.43,78.21364992]
[1770153143052,76.16326248,101.52,101.44,69.38648986]
[1770153143354,76.16326248,101.52,101.44,78.21364992]
[1770153143546,76.16326248,101.52,101.44,69.38648986]
[1770153143752,76.16326248,101.52,101.43,8.82716006]
[1770153143947,76.16326248,101.52,101.43,69.38648986]
[1770153144753,85.03996248,101.52,101.43,78.21364992]
[1770153144950,85.03996248,101.52,101.43,69.38648986]
[1770153145655,85.03996248,101.52,101.43,78.27058986]
[1770153145855,85.03996248,101.52,101.44,69.38648986]
[1770153146249,76.16326248,101.52,101.44,78.26968986]
[1770153146553,69.70995118,101.52,101.46,69.38648986]
[1770153147753,76.16326248,101.52,101.46,69.38648986]
[1770153148155,69.70995118,101.52,101.46,69.38648986]
[1770153149259,6.4533113,101.54,101.46,78.26778986]
[1770153149457,76.16326248,101.54,101.47,69.38648986]
[1770153149956,0.06199562,101.51,101.47,69.38648986]
[1770153150755,0.06199562,101.51,101.47,78.26708986]
[1770153150958,113.55166498,101.56,101.47,69.38648986]
[1770153151155,113.55166498,101.56,101.47,78.21364992]
[1770153151562,122.42456498,101.56,101.49,8.8788]
[1770153151853,122.42456498,101.56,101.5,69.38648986]
[1770153153054,122.42456498,101.56,101.5,78.26448986]
[1770153153565,107.08995118,101.56,101.5,69.38648986]
[1770153154870,107.08995118,101.56,101.52,8.8762]
[1770153155368,107.08995118,101.56,101.51,8.877]
[1770153155568,107.08995118,101.56,101.5,69.38648986]
[1770153155569,37.38,101.56,101.5,69.38648986]
[1770153155766,43.8417138,101.56,101.49,69.38648986]
[1770153155960,37.38,101.56,101.51,69.38648986]
[1770153156170,18.054145,101.56,101.52,69.44856852]
[1770153156370,4.5e-05,101.56,101.52,69.44856852]
[1770153157773,4.5e-05,101.56,101.53,8.8746]
[1770153158468,4.5e-05,101.56,101.52,69.44856852]
[1770153159766,4.5e-05,101.56,101.52,0.06207866]
[1770153163372,4.5e-05,101.56,101.52,8.93827866]
[1770153163771,4.5e-05,101.56,101.52,0.06207866]
[1770153164976,4.5e-05,101.56,101.52,8.93807866]
[1770153166080,4.5e-05,101.56,101.52,0.06207866]
[1770153166376,69.70999618,101.56,101.49,69.38648986]
[1770153166968,69.70999618,101.56,101.49,78.26468986]
[1770153167575,76.17166498,101.55,101.49,78.26468986]
[1770153167774,85.04536498,101.55,101.49,78.26468986]
[1770153168477,76.17166498,101.55,101.5,8.878]
[1770153168673,69.70995118,101.55,101.49,69.38648986]
[1770153168979,4.5e-05,101.56,101.49,69.38648986]
[1770153170275,4.5e-05,101.56,101.5,8.8773]
[1770153170470,8.872845,101.56,101.5,8.8773]
[1770153170780,8.872845,101.56,101.49,69.38648986]
[1770153170781,68.91056953,101.56,101.49,78.26528986]
[1770153171580,77.78406953,101.56,101.49,78.26528986]
[1770153172178,0.06202241,101.54,101.49,78.26528986]
[1770153172578,68.97254694,101.54,101.47,84.12873913]
[1770153173279,68.91052453,101.54,101.47,84.12873913]
[1770153173680,77.78512453,101.54,101.47,84.12873913]
[1770153174176,77.78512453,101.54,101.47,75.24863913]
[1770153175378,78.48924878,101.53,101.47,75.24863913]
[1770153176481,8.877,101.52,101.47,75.24863913]
[1770153177181,87.36474878,101.53,101.47,75.24863913]
[1770153177381,78.48924878,101.53,101.47,75.24863913]
[1770153178181,72.02753498,101.53,101.47,75.24863913]
[1770153179382,78.48924878,101.53,101.46,73.57263905]
[1770153179578,0.06305951,101.51,101.46,73.57263905]
[1770153184491,78.55230829,101.51,101.44,82.45583905]
[1770153184677,78.48924878,101.49,101.42,82.45683905]
[1770153184879,78.48924878,101.47,101.39,73.57263905]
[1770153185287,78.48924878,101.47,101.4,73.57263905]
[1770153186284,78.48924878,101.45,101.38,82.46113905]
[1770153186682,78.48924878,101.45,101.38,73.57263905]
[1770153186991,6.4617138,101.43,101.38,73.57263905]
[1770153187688,78.48924878,101.43,101.36,73.57263905]
[1770153187985,78.48924878,101.43,101.34,82.46383905]
[1770153187986,78.48924878,101.41,101.34,82.46383905]
[1770153188490,87.37524878,101.41,101.34,73.57263905]
[1770153188883,78.48924878,101.41,101.34,73.57263905]
[1770153189290,78.48924878,101.41,101.34,82.46453905]
[1770153190894,87.37524878,101.41,101.34,82.46453905]
[1770153191095,87.37524878,101.41,101.34,73.57263905]
[1770153191096,6.4617138,101.39,101.34,73.57263905]
[1770153191394,6.4617138,101.39,101.32,82.46563905]
[1770153192291,6.4617138,101.39,101.32,73.57263905]
[1770153192792,78.48924878,101.39,101.32,73.57263905]
[1770153194892,87.37694878,101.39,101.32,73.57263905]
[1770153196304,80.91523498,101.39,101.32,73.57263905]
[1770153196502,72.02753498,101.39,101.32,73.57263905]
[1770153197500,6.4617138,101.38,101.32,73.57263905]
[1770153197700,72.02753498,101.39,101.32,73.57263905]
[1770153199403,78.48924878,101.38,101.32,73.57263905]
[1770153199905,78.48924878,101.4,101.32,73.57263905]
[1770153201004,87.37634878,101.4,101.32,73.57263905]
[1770153201303,79.70834041,101.38,101.32,73.57263905]
[1770153202105,6.4617138,101.36,101.3,72.67930961]
[1770153202504,79.70834041,101.36,101.3,72.67930961]
[1770153203613,79.70834041,101.36,101.28,370.75930961]
[1770153203810,79.70834041,101.36,101.29,72.67930961]
[1770153204011,73.24662661,101.36,101.29,72.67930961]
[1770153204700,138.2403,101.4,101.29,72.67930961]
[1770153204908,138.2403,101.4,101.33,72.67930961]
[1770153204909,73.24662661,101.39,101.33,72.67930961]
[1770153205104,79.70834041,101.39,101.3,72.67930961]
[1770153205405,79.70834041,101.37,101.3,72.67930961]
[1770153205604,88.59774041,101.37,101.3,72.67930961]
[1770153205805,79.70834041,101.37,101.3,72.67930961]
[1770153207214,88.59784041,101.37,101.3,72.67930961]
[1770153207411,79.70834041,101.37,101.3,72.67930961]
[1770153207620,6.4617138,101.35,101.3,72.67930961]
[1770153208310,88.59964041,101.35,101.28,72.67930961]
[1770153208512,79.70834041,101.35,101.28,72.67930961]
[1770153209016,8.8923,101.34,101.28,72.67930961]
[1770153209613,82.13892661,101.34,101.28,72.67930961]
[1770153209814,82.13892661,101.34,101.24,275.54]
[1770153209815,88.60134041,101.33,101.26,72.67930961]
[1770153210520,88.62900592,101.33,101.26,72.67930961]
[1770153210718,79.73600592,101.33,101.26,72.67930961]
[1770153211219,79.73600592,101.35,101.26,72.67930961]
[1770153211417,88.62730592,101.35,101.26,72.67930961]
[1770153211620,88.62730592,101.35,101.26,81.57750961]
[1770153211813,79.73600592,101.35,101.26,72.67930961]
[1770153212012,88.62740592,101.35,101.26,72.67930961]
[1770153212419,79.73600592,101.35,101.26,72.67930961]
[1770153213021,79.73600592,101.35,101.28,72.67930961]
[1770153213220,88.62740592,101.35,101.28,72.67930961]
[1770153213518,73.24662661,101.35,101.28,72.67930961]
[1770153214523,82.13782661,101.35,101.28,81.57630961]
[1770153215024,82.13782661,101.35,101.28,72.67930961]
[1770153215816,88.62720592,101.35,101.28,72.67930961]
[1770153218528,82.13912661,101.34,101.28,72.67930961]
[1770153219222,73.24662661,101.34,101.26,72.67930961]
[1770153219428,73.24662661,101.32,101.26,72.67930961]
[1770153219622,79.73600592,101.31,101.24,72.67930961]
[1770153221726,88.63080592,101.31,101.24,81.58000961]
[1770153221926,82.14142661,101.31,101.24,81.58000961]
[1770153222121,88.63080592,101.31,101.24,81.58000961]
[1770153223320,88.63080592,101.31,101.19,145.00627931]
[1770153223321,73.24662661,101.28,101.19,72.67930961]
[1770153223519,138.3772,101.3,101.2,72.67930961]
[1770153223520,73.24662661,101.29,101.2,72.67930961]
[1770153223719,79.73600592,101.31,101.22,72.67930961]
[1770153223925,79.73600592,101.31,101.22,466.69930961]
[1770153224129,73.24662661,101.31,101.23,72.67930961]
[1770153224433,82.14272661,101.3,101.23,72.67930961]
[1770153224632,88.63210592,101.3,101.23,72.67930961]
[1770153224926,88.63210592,101.3,101.18,540.78140717]
[1770153224927,211.66382661,101.27,101.18,466.71930961]
[1770153225124,79.73600592,101.26,101.18,72.67930961]
[1770153225329,73.24662661,101.26,101.18,72.67930961]
[1770153225627,73.30882285,101.28,101.2,72.67930961]
[1770153225828,73.24662661,101.28,101.2,72.67930961]
[1770153229924,82.14412661,101.28,101.2,72.67930961]
[1770153231631,82.14412661,101.28,101.2,81.58360961]
[1770153231833,73.24662661,101.28,101.2,72.67930961]
[1770153232033,74.85558096,101.3,101.22,74.4249301]
[1770153232230,74.85558096,101.3,101.23,74.4249301]
[1770153232436,77.5809137,101.3,101.23,77.15026284]
[1770153232836,74.85558096,101.3,101.23,77.15026284]
[1770153233031,77.5809137,101.3,101.24,83.3256301]
[1770153233234,2.72533274,101.29,101.24,74.4249301]
[1770153233436,74.85558096,101.3,101.22,74.4249301]
[1770153233437,2.72533274,101.27,101.22,74.4249301]
[1770153234437,2.72533274,101.29,101.23,69.07167178]
[1770153234638,2.72533274,101.28,101.23,69.07167178]
[1770153234838,2.72533274,101.29,101.23,69.07167178]
[1770153235635,2.72533274,101.29,101.23,77.97307178]
[1770153235835,0.06203333,101.27,101.23,69.07167178]
[1770153236340,0.06203333,101.27,101.24,77.97237178]
[1770153236539,0.06203333,101.27,101.24,69.07167178]
[1770153237333,2.78736607,101.27,101.22,463.27167178]
[1770153237735,2.78736607,101.27,101.22,77.97427178]
[1770153237930,2.72533274,101.25,101.22,77.97427178]
[1770153238232,2.72533274,101.24,101.2,69.07167178]
[1770153238437,2.72533274,101.26,101.2,69.07167178]
[1770153238943,2.72533274,101.26,101.21,8.9027]
[1770153239140,77.40441071,101.27,101.21,69.07167178]
[1770153239443,77.40441071,101.27,101.23,8.9013]
[1770153239842,77.40441071,101.27,101.21,77.97437178]
[1770153240043,2.72533274,101.26,101.21,69.07167178]
[1770153240338,74.67907797,101.27,101.21,69.07167178]
[1770153240539,74.67907797,101.25,101.19,69.07167178]
[1770153241244,81.17435992,101.24,101.16,463.29167178]
[1770153241746,81.17435992,101.24,101.18,8.906]
[1770153242141,74.67907797,101.24,101.18,77.97767178]
[1770153242338,74.67907797,101.24,101.19,8.9051]
[1770153243448,74.67907797,101.27,101.2,69.07167178]
[1770153243644,74.67907797,101.29,101.21,69.07167178]
[1770153243836,74.67907797,101.29,101.22,69.07167178]
[1770153244338,6.49528195,101.28,101.2,394.26]
[1770153244536,81.17435992,101.3,101.21,69.07167178]
[1770153245846,74.67907797,101.29,101.23,69.07167178]
[1770153246343,0.06216371,101.27,101.23,69.07167178]
[1770153248744,0.06216371,101.27,101.23,77.97307178]
[1770153249646,0.06216371,101.27,101.23,69.07167178]
[1770153252253,0.06216371,101.27,101.24,77.97247178]
[1770153252751,74.67907797,101.31,101.24,77.97247178]
[1770153253452,83.57387797,101.31,101.25,69.07167178]
[1770153253954,74.67907797,101.31,101.25,69.07167178]
[1770153254246,74.67907797,101.33,101.25,69.07167178]
[1770153254549,74.67907797,101.35,101.27,69.07167178]
[1770153255152,83.57037797,101.35,101.27,77.96987178]
[1770153256151,83.57037797,101.35,101.29,69.07167178]
[1770153256353,8.8921,101.34,101.29,69.07167178]
[1770153256750,74.67907797,101.35,101.29,69.07167178]
[1770153257049,8.8911,101.36,101.29,69.07167178]
[1770153257957,8.8915,101.35,101.29,69.07167178]
[1770153258651,8.8921,101.34,101.29,69.07167178]
[1770153259350,8.893,101.33,101.29,69.07167178]
[1770153260245,74.67907797,101.35,101.29,69.07167178]
[1770153262055,81.17435992,101.35,101.28,394.26]
[1770153262452,90.06555992,101.35,101.28,394.26]
[1770153263652,77.68311323,101.34,101.28,394.26]
[1770153264249,84.17929518,101.33,101.25,70.29458645]
[1770153265250,75.28629518,101.33,101.25,79.19438645]
[1770153266457,68.79101323,101.35,101.27,70.29458645]
[1770153266760,6.49528195,101.37,101.28,70.29458645]
[1770153266761,68.79101323,101.37,101.28,70.29458645]
[1770153267054,68.79101323,101.37,101.3,70.29458645]
[1770153267952,84.17589518,101.37,101.3,70.29458645]
[1770153268151,75.28629518,101.37,101.3,70.29458645]
[1770153268355,75.28629518,101.37,101.28,79.19178645]
[1770153268555,84.17669518,101.36,101.28,79.19178645]
[1770153268959,75.28629518,101.34,101.28,70.29458645]
[1770153269968,84.17839518,101.34,101.28,70.29458645]
[1770153270760,84.17839518,101.34,101.26,464.39458645]
[1770153270956,75.28629518,101.32,101.26,70.29458645]
[1770153271259,75.28629518,101.32,101.26,79.19348645]
[1770153272257,84.18029518,101.32,101.26,70.29458645]
[1770153272458,77.68501323,101.32,101.26,70.29458645]
[1770153272662,68.79101323,101.32,101.27,8.8981]
[1770153280566,68.79101323,101.32,101.26,79.19358645]
[1770153281865,68.79101323,101.32,101.24,532.5123]
[1770153281866,68.79101323,101.3,101.25,8.8998]
[1770153282573,2.72608279,101.29,101.25,8.8998]
[1770153282772,2.72608279,101.28,101.24,79.19528645]
[1770153282973,2.72608279,101.27,101.22,70.29458645]
[1770153283673,2.72608279,101.26,101.22,70.29458645]
[1770153284272,138.35,101.32,101.24,70.29458645]
[1770153284273,68.79101323,101.32,101.24,70.29458645]
[1770153284473,2.72608279,101.3,101.24,70.29458645]
[1770153284672,2.72608279,101.27,101.22,79.19708645]
[1770153285275,2.72608279,101.28,101.23,70.29458645]
[1770153285478,2.72608279,101.29,101.24,79.19498645]
[1770153286371,71.51709602,101.3,101.25,8.8998]
[1770153286976,71.51709602,101.3,101.25,79.19438645]
[1770153286977,68.79101323,101.3,101.25,79.19438645]
[1770153287176,2.72608279,101.31,101.25,79.19438645]
[1770153287372,68.79101323,101.36,101.29,70.29458645]
[1770153287577,71.51709602,101.36,101.29,73.02066924]
[1770153287979,71.51709602,101.36,101.29,211.40826924]
[1770153288181,2.72608279,101.37,101.3,211.39426924]
[1770153288380,2.72608279,101.36,101.31,79.18928645]
[1770153288580,2.72608279,101.35,101.31,70.29458645]
[1770153288781,2.72608279,101.34,101.29,70.29458645]
[1770153289082,2.72608279,101.33,101.29,70.29458645]
[1770153289781,2.72608279,101.33,101.29,79.19018645]
[1770153290481,75.27653461,101.35,101.29,79.19018645]
[1770153290682,68.79101323,101.35,101.29,79.19018645]
[1770153292179,75.27653461,101.35,101.29,8.8956]
[1770153292585,84.16783461,101.35,101.28,8.8973]
[1770153293584,75.27653461,101.35,101.28,8.8973]
[1770153294789,75.27653461,101.35,101.28,69.96918367]
[1770153295178,68.79101323,101.35,101.28,69.96918367]
[1770153295581,68.79101323,101.35,101.29,8.8963]
[1770153296183,84.16783461,101.35,101.28,8.8972]
[1770153296983,68.96230607,101.32,101.27,403.0381]
[1770153297392,68.96230607,101.32,101.27,394.14]
[1770153297587,68.96230607,101.32,101.28,8.8973]
[1770153299281,68.96230607,101.32,101.26,208.39618367]
[1770153299687,138.2827,101.37,101.28,69.96918367]
[1770153299688,68.96230607,101.34,101.28,69.96918367]
[1770153299889,68.96230607,101.34,101.28,208.37158367]
[1770153300195,6.48552138,101.37,101.3,69.96918367]
[1770153300386,6.48552138,101.37,101.29,138.3896]
[1770153300387,68.96230607,101.41,101.34,208.28778367]
[1770153300587,68.96230607,101.41,101.34,69.96918367]
[1770153300788,68.96230607,101.41,101.35,8.8911]
[1770153300984,75.44782745,101.41,101.34,69.96918367]
[1770153301188,68.96230607,101.41,101.34,69.96918367]
[1770153301788,68.96230607,101.41,101.34,208.28928367]
[1770153302694,68.96230607,101.41,101.35,8.8912]
[1770153303394,68.96230607,101.41,101.34,69.96918367]
[1770153303597,75.44782745,101.41,101.32,69.96918367]
[1770153303889,68.96230607,101.38,101.32,69.96918367]
[1770153304392,68.96230607,101.38,101.28,69.96918367]
[1770153304393,75.44782745,101.35,101.28,69.96918367]
[1770153304997,75.44782745,101.37,101.29,69.96918367]
[1770153305293,75.44782745,101.35,101.29,69.96918367]
[1770153305894,68.96230607,101.35,101.29,69.96918367]
[1770153306293,75.44782745,101.35,101.29,69.96918367]
[1770153306892,75.44782745,101.35,101.29,78.86538367]
[1770153307095,68.96230607,101.35,101.29,69.96918367]
[1770153307695,6.48552138,101.37,101.3,8.8954]
[1770153308003,68.96230607,101.38,101.31,69.96918367]
[1770153308393,68.96230607,101.38,101.31,78.86348367]
[1770153308792,68.96230607,101.38,101.31,208.32948367]
[1770153308992,75.44782745,101.41,101.33,69.96918367]
[1770153309498,75.44782745,101.41,101.33,208.30188367]
[1770153309698,75.44782745,101.41,101.35,8.8911]
[1770153309898,68.96230607,101.44,101.36,208.26198367]
[1770153310298,68.96230607,101.44,101.36,69.96918367]
[1770153311203,68.96230607,101.45,101.38,8.8884]
[1770153311498,75.44782745,101.42,101.35,602.25628367]
[1770153311802,75.44782745,101.42,101.35,463.94918367]
[1770153312003,75.44782745,101.42,101.35,393.98]
[1770153312394,75.44782745,101.4,101.33,69.96918367]
[1770153313903,75.44782745,101.4,101.34,8.892]
[1770153314498,75.44782745,101.4,101.35,8.8911]
[1770153314995,68.96230607,101.4,101.35,8.8911]
[1770153315199,75.44782745,101.42,101.36,8.8903]
[1770153315410,68.96230607,101.42,101.35,208.27628367]
[1770153315601,68.96230607,101.42,101.36,8.8894]
[1770153316700,75.44782745,101.42,101.35,78.86028367]
[1770153317099,75.44782745,101.42,101.33,69.96918367]
[1770153317100,68.96230607,101.4,101.33,69.96918367]
[1770153317405,75.44782745,101.4,101.34,8.8917]
[1770153317600,75.44782745,101.42,101.35,69.96918367]
[1770153318399,68.96230607,101.42,101.35,69.96918367]
[1770153318603,75.44782745,101.42,101.35,69.96918367]
[1770153319106,84.33302745,101.42,101.34,8.8914]
[1770153319803,84.33302745,101.42,101.35,8.8912]
[1770153320809,75.44782745,101.42,101.36,8.89]
[1770153323305,75.44782745,101.42,101.37,8.8893]
[1770153323502,75.44782745,101.42,101.34,245.318]
[1770153323907,75.44782745,101.42,101.34,319.16555058]
[1770153324206,75.44782745,101.42,101.36,8.8901]
[1770153324402,84.33342745,101.42,101.34,180.84755058]
[1770153324606,75.44782745,101.42,101.34,107.0]
[1770153324806,75.44782745,101.42,101.33,212.18165058]
[1770153325103,75.44782745,101.42,101.34,212.16705058]
[1770153325406,75.44782745,101.42,101.34,73.84755058]
[1770153325407,84.33302745,101.42,101.34,73.84755058]
[1770153326808,8.886,101.41,101.34,73.84755058]
[1770153327103,84.32814786,101.41,101.34,73.84755058]
[1770153327305,81.92766924,101.4,101.34,73.84755058]
[1770153327709,90.81526924,101.4,101.34,73.84755058]
[1770153328608,90.81336924,101.42,101.34,73.84755058]
[1770153328808,81.92766924,101.42,101.34,73.84755058]
[1770153329308,81.92766924,101.44,101.34,73.84755058]
[1770153329700,81.92766924,101.44,101.35,73.84755058]
[1770153330210,75.44214786,101.43,101.35,73.84755058]
[1770153330408,75.44214786,101.43,101.36,73.84755058]
[1770153330811,75.44214786,101.45,101.36,73.84755058]
[1770153331014,75.44214786,101.45,101.37,73.84755058]
[1770153331413,75.44214786,101.45,101.39,73.84755058]
[1770153333311,75.44214786,101.47,101.39,73.84755058]
[1770153333905,75.44214786,101.47,101.39,82.73435058]
[1770153334413,75.44214786,101.47,101.39,82.73505058]
[1770153334809,75.44214786,101.47,101.39,73.84755058]
[1770153335010,75.44214786,101.47,101.4,82.73425058]